[Event "POL Youth-ch U20 Girls 2020"]
[Site "Pokrzywna"]
[Date "2020.12.03"]
[Round "6.5"]
[White "Kiolbasa, Oliwia"]
[Black "Karykowska, Anna"]
[Result "1-0"]
[ECO "B28"]
[WhiteElo "2260"]
[BlackElo "1979"]
[Annotator "RC"]
[PlyCount "91"]
[EventDate "2020.11.29"]
[EventType "swiss"]
[EventCountry "POL"]
[SourceTitle "playchess.com"]
[Source "ChessBase"]
[SourceQuality "1"]
[TimeControl "40/5400+30:1800+30"]

1. e4 {[%emt 0:00:00]} c5 {[%emt 0:00:00]} 2. Nf3 {[%emt 0:00:00]} a6 {[%emt 0:00:00]} 3. c3 {[%emt 0:00:00]} e6 {[%emt 0:00:00]} 4. d4 {[%emt 0:00:10]} d5 {[%emt 0:00:08]} 5. e5 {[%emt 0:00:18]} Bd7 {[%emt 0:00:40]} 6. Bd3 {[%emt 0:00:25]} cxd4 {[%emt 0:00:24]} 7. cxd4 {[%emt 0:00:22]} Bb5 {[%emt 0:00:28]} 8. Bc2 {[%emt 0:00:29]} Bb4+ {[%emt 0:00:45]} 9. Bd2 {[%emt 0:00:31]} a5 {[%emt 0:01:49]} 10. Nc3 {[%emt 0:07:35]} Bxc3 {[%emt 0:07:33]} 11. Bxc3 {[%emt 0:00:28]} Nc6 {[%emt 0:00:38]} 12. Qd2 {[%emt 0:02:07]} h6 {[%emt 0:04:53]} 13. h4 {[%emt 0:04:59]} Nge7 {[%emt 0:02:23]} 14. Rh3 {[%emt 0:09:02]} Qb6 {[%emt 0:05:37]} 15. h5 {[%emt 0:05:18]} O-O-O {[%emt 0:05:08]} 16. Rg3 {[%emt 0:07:54]} Rdg8 {[%emt 0:03:10]} 17. Nh4 {[%emt 0:06:02]} Ba6 {[%emt 0:03:13]} 18. a3 {[%emt 0:06:42]} Qb5 {[%emt 0:07:33]} 19. O-O-O {[%emt 0:18:04]} Qe2 {[%emt 0:09:29]} 20. f3 {[%emt 0:01:14]} Qxd2+ {[%emt 0:05:55]} 21. Kxd2 {[%emt 0:00:10]} b6 {[%emt 0:01:35]} 22. Ke3 {[%emt 0:02:33]} Kc7 {[%emt 0:05:26]} 23. Be1 {[%emt 0:01:44]} Kd7 {[%emt 0:13:04]} 24. f4 {[%emt 0:01:50]} f5 {[%emt 0:04:53]} 25. Rc1 {[%emt 0:06:49]} Bc4 {[%emt 0:06:27]} 26. Bd1 {[%emt 0:05:55]} Rh7 {[%emt 0:01:23]} 27. Bf2 {[%emt 0:06:10]} Rc8 {[%emt 0:02:03]} 28. Rh3 {[%emt 0:00:06]} Rhh8 {[%emt 0:01:45]} 29. g4 {[%emt 0:01:31]} fxg4 {[%emt 0:02:10]} 30. Bxg4 {[%emt 0:00:02]} Rhf8 {[%emt 0:00:11]} 31. Rf3 {[%emt 0:01:19]} Nf5+ {[%emt 0:01:16]} 32. Bxf5 {[%emt 0:00:49]} exf5 {[%emt 0:00:02]} 33. Rg1 {[%emt 0:00:14]} Rf7 {[%emt 0:01:40]} 34. Rfg3 {[%emt 0:00:08]} Rg8 {[%emt 0:03:23]} 35. Rg6 {[%emt 0:00:17]} Nd8 {[%emt 0:00:23]} 36. Rxb6 {[%emt 0:01:15]} a4 {[%emt 0:01:10]} 37. Rd6+ {[%emt 0:00:47]} Kc7 {[%emt 0:00:38]} 38. Rxh6 {[%emt 0:00:49]} Re8 {[%emt 0:00:42]} 39. Rh7 {[%emt 0:02:25]} Ree7 {[%emt 0:00:48]} 40. Ng6 {[%emt 0:00:00]} Re8 {[%emt 0:00:00]} 41. Nh8 {[%emt 0:03:38]} Rd7 {[%emt 0:02:29]} 42. Rgxg7 {[%emt 0:00:53]} Bb5 {[%emt 0:00:51]} 43. Ng6 {[%emt 0:04:27]} Ne6 {[%emt 0:02:37]} 44. Rxd7+ {[%emt 0:00:11]} Bxd7 {[%emt 0:00:06]} 45. Be1 {[%emt 0:00:34]} Rb8 {[%emt 0:02:19]} 46. Bb4 {[%emt 0:00:55]} 1-0

[Event "POL Youth-ch U20 Girls 2020"]
[Site "Pokrzywna"]
[Date "2020.12.03"]
[Round "6.7"]
[White "Cieslak, Wiktoria"]
[Black "Starosta, Martyna"]
[Result "1-0"]
[ECO "B96"]
[WhiteElo "2008"]
[BlackElo "2094"]
[Annotator "ChessBase"]
[PlyCount "83"]
[EventDate "2020.11.29"]
[EventType "swiss"]
[EventCountry "POL"]
[SourceTitle "playchess.com"]
[Source "ChessBase"]
[SourceQuality "1"]
[TimeControl "40/5400+30:1800+30"]

1. e4 {[%emt 0:00:00]} c5 {[%emt 0:00:00]} 2. Nf3 {[%emt 0:00:00]} d6 {[%emt 0:00:00]} 3. d4 {[%emt 0:00:00]} cxd4 {[%emt 0:00:00]} 4. Nxd4 {[%emt 0:00:00]} Nf6 {[%emt 0:00:00]} 5. Nc3 {[%emt 0:00:00]} a6 {[%emt 0:00:00]} 6. Bg5 {[%emt 0:00:14]} e6 {[%emt 0:00:03]} 7. f4 {[%emt 0:00:04]} h6 {[%emt 0:00:05]} 8. Bh4 {[%emt 0:01:32]} Be7 {[%emt 0:00:11]} 9. Bf2 {[%emt 0:00:24]} Qc7 {[%emt 0:09:40]} 10. Qe2 {[%emt 0:05:39]} Nbd7 {[%emt 0:03:44]} 11. O-O-O {[%emt 0:04:11]} b5 {[%emt 0:03:03]} 12. f5 {[%emt 0:09:49]} e5 {[%emt 0:09:58]} 13. Nb3 {[%emt 0:05:06]} Bb7 {[%emt 0:05:41]} 14. g4 {[%emt 0:03:54]} Nb6 {[%emt 0:11:11]} 15. Bxb6 {[%emt 0:02:53]} Qxb6 {[%emt 0:00:11]} 16. Bg2 {[%emt 0:00:32]} Rc8 {[%emt 0:05:11]} 17. h4 {[%emt 0:01:59]} b4 {[%emt 0:03:48]} 18. Nd5 {[%emt 0:00:43]} Bxd5 {[%emt 0:00:59]} 19. exd5 {[%emt 0:00:07]} h5 {[%emt 0:07:24]} 20. g5 {[%emt 0:02:04]} Ng4 {[%emt 0:01:14]} 21. Rhe1 {[%emt 0:00:09]} O-O {[%emt 0:07:42]} 22. Bf3 {[%emt 0:01:23]} Nf2 {[%emt 0:06:21]} 23. Rd2 {[%emt 0:01:06]} Nh3 {[%emt 0:00:15]} 24. f6 {[%emt 0:04:56]} Nf4 {[%emt 0:05:18]} 25. Qe4 {[%emt 0:02:20]} Bd8 {[%emt 0:02:07]} 26. fxg7 {[%emt 0:00:46]} Kxg7 {[%emt 0:03:40]} 27. Qf5 {[%emt 0:02:54]} Rc4 {[%emt 0:03:08]} 28. Be4 {[%emt 0:02:16]} Ng6 {[%emt 0:02:29]} 29. Rf2 {[%emt 0:06:18]} Be7 {[%emt 0:02:26]} 30. Nd2 {[%emt 0:03:26]} Rc7 {[%emt 0:01:20]} 31. Nf1 {[%emt 0:03:00]} Qa5 {[%emt 0:02:25]} 32. Re3 {[%emt 0:02:48]} Qxa2 {[%emt 0:01:27]} 33. Ng3 {[%emt 0:00:22]} Rc4 {[%emt 0:02:50]} 34. Nxh5+ {[%emt 0:00:50]} Kh8 {[%emt 0:00:03]} 35. Nf6 {[%emt 0:00:49]} Qa1+ {[%emt 0:00:56]} 36. Kd2 {[%emt 0:00:04]} Qxb2 {[%emt 0:00:22]} 37. h5 {[%emt 0:00:21]} Rd4+ {[%emt 0:01:18]} 38. Rd3 {[%emt 0:00:44]} Qc3+ {[%emt 0:00:58]} 39. Kd1 {[%emt 0:01:11]} Qa1+ {[%emt 0:00:57]} 40. Ke2 {[%emt 0:00:00]} Bxf6 {[%emt 0:00:00]} 41. Qxf6+ {[%emt 0:02:53]} Kg8 {[%emt 0:00:58]} 42. Bxg6 {[%emt 0:00:14]} 1-0

[Event "POL Youth-ch U20 Girls 2020"]
[Site "Pokrzywna"]
[Date "2020.12.03"]
[Round "6.8"]
[White "Marcinczyk, Monika"]
[Black "Czernikowska, Laura"]
[Result "1-0"]
[ECO "B40"]
[WhiteElo "2030"]
[BlackElo "1508"]
[Annotator "ChessBase"]
[PlyCount "59"]
[EventDate "2020.11.29"]
[EventType "swiss"]
[EventCountry "POL"]
[SourceTitle "playchess.com"]
[Source "ChessBase"]
[SourceQuality "1"]
[TimeControl "40/5400+30:1800+30"]

1. e4 {[%emt 0:00:00]} c5 {[%emt 0:00:00]} 2. Nf3 {[%emt 0:00:00]} e6 {[%emt 0:00:00]} 3. d4 {[%emt 0:00:00]} cxd4 {[%emt 0:00:00]} 4. Nxd4 {[%emt 0:00:00]} Nf6 {[%emt 0:00:15]} 5. Nc3 {[%emt 0:00:00]} Nc6 {[%emt 0:00:08]} 6. Ndb5 {[%emt 0:05:34]} Bb4 {[%emt 0:01:31]} 7. a3 {[%emt 0:00:36]} Bxc3+ {[%emt 0:00:33]} 8. Nxc3 {[%emt 0:00:12]} d5 {[%emt 0:01:53]} 9. exd5 {[%emt 0:01:09]} Nxd5 {[%emt 0:01:04]} 10. Nxd5 {[%emt 0:01:21]} Qxd5 {[%emt 0:01:13]} 11. Qxd5 {[%emt 0:05:48]} exd5 {[%emt 0:00:04]} 12. Be3 {[%emt 0:06:45]} O-O {[%emt 0:03:35]} 13. Rd1 {[%emt 0:08:49]} Be6 {[%emt 0:02:51]} 14. f4 {[%emt 0:12:52]} Rfe8 {[%emt 0:03:39]} 15. Kf2 {[%emt 0:00:47]} Rac8 {[%emt 0:02:07]} 16. c3 {[%emt 0:03:46]} b6 {[%emt 0:04:18]} 17. Bb5 {[%emt 0:08:20]} Red8 {[%emt 0:03:55]} 18. Bd4 {[%emt 0:08:38]} Nxd4 {[%emt 0:04:17]} 19. Rxd4 {[%emt 0:00:12]} Rc5 {[%emt 0:02:11]} 20. Be2 {[%emt 0:03:52]} Kf8 {[%emt 0:12:09]} 21. Rhd1 {[%emt 0:01:11]} Rdc8 {[%emt 0:06:24]} 22. g4 {[%emt 0:03:53]} g6 {[%emt 0:06:32]} 23. Kg3 {[%emt 0:02:21]} Ke7 {[%emt 0:03:53]} 24. h4 {[%emt 0:05:40]} f5 {[%emt 0:04:51]} 25. g5 {[%emt 0:00:56]} R8c7 {[%emt 0:05:57]} 26. Re1 {[%emt 0:03:47]} Kf7 {[%emt 0:02:57]} 27. Bf3 {[%emt 0:01:51]} Rb5 {[%emt 0:07:07]} 28. b4 {[%emt 0:01:41]} Rc4 {[%emt 0:01:46]} 29. Rxc4 {[%emt 0:00:36]} dxc4 {[%emt 0:00:08]} 30. a4 {[%emt 0:00:09]} 1-0

[Event "POL Youth-ch U20 Girls 2020"]
[Site "Pokrzywna"]
[Date "2020.12.03"]
[Round "6.9"]
[White "Budkiewicz, Magdalena"]
[Black "Smietanska, Wiktoria"]
[Result "1/2-1/2"]
[ECO "B35"]
[WhiteElo "1672"]
[BlackElo "2013"]
[Annotator "RC"]
[PlyCount "71"]
[EventDate "2020.11.29"]
[EventType "swiss"]
[EventCountry "POL"]
[SourceTitle "playchess.com"]
[Source "ChessBase"]
[SourceQuality "1"]
[TimeControl "40/5400+30:1800+30"]

1. e4 {[%emt 0:00:00]} c5 {[%emt 0:00:00]} 2. Nf3 {[%emt 0:00:00]} g6 {[%emt 0:00:00]} 3. d4 {[%emt 0:00:11]} cxd4 {[%emt 0:00:00]} 4. Nxd4 {[%emt 0:00:11]} Nc6 {[%emt 0:00:00]} 5. Nc3 {[%emt 0:03:40]} Bg7 {[%emt 0:00:09]} 6. Be3 {[%emt 0:00:26]} Nf6 {[%emt 0:00:13]} 7. Bc4 {[%emt 0:00:55]} Qa5 {[%emt 0:00:14]} 8. O-O {[%emt 0:00:43]} O-O {[%emt 0:00:22]} 9. Bb3 {[%emt 0:01:47]} d6 {[%emt 0:00:54]} 10. h3 {[%emt 0:01:41]} Bd7 {[%emt 0:03:30]} 11. Kh1 {[%emt 0:02:52]} Qh5 {[%emt 0:09:34]} 12. Qxh5 {[%emt 0:06:43]} Nxh5 {[%emt 0:00:08]} 13. Rad1 {[%emt 0:03:17]} Rfd8 {[%emt 0:08:22]} 14. Nd5 {[%emt 0:04:48]} Nf6 {[%emt 0:02:59]} 15. Nxf6+ {[%emt 0:05:39]} Bxf6 {[%emt 0:00:09]} 16. c3 {[%emt 0:02:39]} Na5 {[%emt 0:03:35]} 17. Bc2 {[%emt 0:00:54]} Nc4 {[%emt 0:03:00]} 18. Bc1 {[%emt 0:02:14]} b5 {[%emt 0:06:28]} 19. Bd3 {[%emt 0:12:42]} a6 {[%emt 0:02:27]} 20. f4 {[%emt 0:10:01]} Rdc8 {[%emt 0:05:02]} 21. Rfe1 {[%emt 0:02:50]} Rab8 {[%emt 0:17:22]} 22. Nf3 {[%emt 0:05:51]} Bc6 {[%emt 0:05:20]} 23. Bxc4 {[%emt 0:03:36]} bxc4 {[%emt 0:00:11]} 24. Nd4 {[%emt 0:00:28]} Ba4 {[%emt 0:02:27]} 25. Rd2 {[%emt 0:00:45]} Bh4 {[%emt 0:04:26]} 26. Rf1 {[%emt 0:02:02]} Rc5 {[%emt 0:11:44]} 27. Kh2 {[%emt 0:12:54]} Bf6 {[%emt 0:01:05]} 28. Nf3 {[%emt 0:00:45]} Bc6 {[%emt 0:01:30]} 29. Re2 {[%emt 0:00:53]} Ra5 {[%emt 0:01:39]} 30. a3 {[%emt 0:00:27]} Rab5 {[%emt 0:04:42]} 31. Rd1 {[%emt 0:01:19]} Kf8 {[%emt 0:04:53]} 32. Nd4 {[%emt 0:02:17]} Bxd4 {[%emt 0:00:21]} 33. Rxd4 {[%emt 0:02:11]} d5 {[%emt 0:00:14]} 34. e5 {[%emt 0:01:11]} e6 {[%emt 0:02:24]} 35. g4 {[%emt 0:01:22]} Ke7 {[%emt 0:01:00]} 36. g5 {[%emt 0:03:25]} 1/2-1/2

[Event "POL Youth-ch U20 Girls 2020"]
[Site "Pokrzywna"]
[Date "2020.12.03"]
[Round "6.10"]
[White "Szczotka, Klara"]
[Black "Pawicka, Magdalena"]
[Result "1-0"]
[ECO "B52"]
[WhiteElo "1928"]
[BlackElo "1762"]
[Annotator "RC"]
[PlyCount "91"]
[EventDate "2020.11.29"]
[EventType "swiss"]
[EventCountry "POL"]
[SourceTitle "playchess.com"]
[Source "ChessBase"]
[SourceQuality "1"]
[TimeControl "40/5400+30:1800+30"]

1. e4 {[%emt 0:00:00]} c5 {[%emt 0:00:00]} 2. Nf3 {[%emt 0:00:00]} d6 {[%emt 0:00:00]} 3. Bb5+ {[%emt 0:00:00]} Bd7 {[%emt 0:00:00]} 4. Bxd7+ {[%emt 0:00:00]} Qxd7 {[%emt 0:00:04]} 5. c4 {[%emt 0:00:09]} Nf6 {[%emt 0:02:25]} 6. Nc3 {[%emt 0:00:26]} g6 {[%emt 0:00:55]} 7. d4 {[%emt 0:01:19]} cxd4 {[%emt 0:02:41]} 8. Nxd4 {[%emt 0:00:23]} Bg7 {[%emt 0:01:39]} 9. f3 {[%emt 0:01:05]} Nc6 {[%emt 0:04:08]} 10. Be3 {[%emt 0:01:09]} O-O {[%emt 0:01:32]} 11. O-O {[%emt 0:02:08]} Rac8 {[%emt 0:05:54]} 12. b3 {[%emt 0:01:50]} a6 {[%emt 0:09:15]} 13. a4 {[%emt 0:04:03]} e6 {[%emt 0:02:25]} 14. Nxc6 {[%emt 0:12:27]} bxc6 {[%emt 0:03:30]} 15. Qd2 {[%emt 0:04:06]} d5 {[%emt 0:04:13]} 16. cxd5 {[%emt 0:03:14]} cxd5 {[%emt 0:01:32]} 17. e5 {[%emt 0:03:33]} Ne8 {[%emt 0:01:08]} 18. Bd4 {[%emt 0:00:34]} f6 {[%emt 0:04:39]} 19. f4 {[%emt 0:02:11]} fxe5 {[%emt 0:02:32]} 20. fxe5 {[%emt 0:00:11]} Rxf1+ {[%emt 0:01:43]} 21. Rxf1 {[%emt 0:01:14]} Bf8 {[%emt 0:00:28]} 22. Qf4 {[%emt 0:03:43]} Ng7 {[%emt 0:01:13]} 23. g4 {[%emt 0:00:50]} Bb4 {[%emt 0:01:43]} 24. Rf3 {[%emt 0:02:52]} Qe7 {[%emt 0:04:18]} 25. Kg2 {[%emt 0:27:04]} Bc5 {[%emt 0:01:01]} 26. Ne2 {[%emt 0:01:05]} Bxd4 {[%emt 0:05:51]} 27. Nxd4 {[%emt 0:00:17]} Rc7 {[%emt 0:17:17]} 28. Qf6 {[%emt 0:04:27]} Qe8 {[%emt 0:01:57]} 29. Qg5 {[%emt 0:02:44]} Rf7 {[%emt 0:03:25]} 30. Qc1 {[%emt 0:03:46]} Rxf3 {[%emt 0:00:21]} 31. Nxf3 {[%emt 0:00:07]} h5 {[%emt 0:04:56]} 32. h3 {[%emt 0:00:21]} hxg4 {[%emt 0:01:21]} 33. hxg4 {[%emt 0:00:03]} Qb8 {[%emt 0:00:32]} 34. Qc3 {[%emt 0:00:32]} Ne8 {[%emt 0:02:06]} 35. Qc6 {[%emt 0:03:45]} Nc7 {[%emt 0:01:40]} 36. Kg3 {[%emt 0:00:48]} Kf8 {[%emt 0:03:29]} 37. b4 {[%emt 0:01:44]} Qd8 {[%emt 0:02:04]} 38. Nd4 {[%emt 0:01:24]} Ke7 {[%emt 0:01:19]} 39. Qb6 {[%emt 0:01:41]} Qd7 {[%emt 0:00:40]} 40. Qb7 {[%emt 0:00:00]} Ke8 {[%emt 0:00:00]} 41. b5 {[%emt 0:03:15]} axb5 {[%emt 0:03:07]} 42. axb5 {[%emt 0:00:11]} Qd8 {[%emt 0:08:48]} 43. b6 {[%emt 0:04:08]} Na8 {[%emt 0:00:10]} 44. Nc6 {[%emt 0:00:15]} Qg5 {[%emt 0:00:40]} 45. Qxa8+ {[%emt 0:00:09]} Kf7 {[%emt 0:00:29]} 46. Qa3 {[%emt 0:01:36]} 1-0

[Event "POL Youth-ch U20 Girls 2020"]
[Site "Pokrzywna"]
[Date "2020.12.03"]
[Round "6.11"]
[White "Furtak, Joanna"]
[Black "Zabrzanska, Weronika"]
[Result "1/2-1/2"]
[ECO "B45"]
[WhiteElo "1837"]
[BlackElo "1849"]
[Annotator "NA"]
[PlyCount "61"]
[EventDate "2020.11.29"]
[EventType "swiss"]
[EventCountry "POL"]
[SourceTitle "playchess.com"]
[Source "ChessBase"]
[SourceQuality "1"]
[TimeControl "40/5400+30:1800+30"]

1. e4 {[%emt 0:00:00]} c5 {[%emt 0:00:00]} 2. Nf3 {[%emt 0:00:00]} e6 {[%emt 0:00:00]} 3. d4 {[%emt 0:00:00]} cxd4 {[%emt 0:00:00]} 4. Nxd4 {[%emt 0:00:00]} Nc6 {[%emt 0:00:00]} 5. Nc3 {[%emt 0:00:00]} Nf6 {[%emt 0:00:00]} 6. g3 {[%emt 0:00:24]} Be7 {[%emt 0:00:11]} 7. Bg2 {[%emt 0:00:20]} d5 {[%emt 0:01:01]} 8. exd5 {[%emt 0:02:10]} exd5 {[%emt 0:03:35]} 9. h3 {[%emt 0:05:59]} O-O {[%emt 0:03:47]} 10. O-O {[%emt 0:00:34]} Qb6 {[%emt 0:17:15]} 11. Nb3 {[%emt 0:11:29]} Rd8 {[%emt 0:00:55]} 12. Qe2 {[%emt 0:03:35]} Be6 $11 {[%emt 0:03:21]} (12... d4 $5 {[%cal Rd4c3]} 13. Ne4 Bf5 $11) 13. Rd1 {[%emt 0:06:55]} d4 {[%emt 0:06:09]} 14. Ne4 {[%emt 0:02:24]} Nxe4 {[%emt 0:01:46]} 15. Bxe4 {[%emt 0:01:26]} Bxh3 {[%emt 0:08:21]} 16. Qh5 {[%emt 0:06:35]} f5 {[%emt 0:01:09]} 17. Qxh3 {[%emt 0:00:52]} fxe4 {[%emt 0:00:07]} 18. Qe6+ {[%emt 0:00:04]} Kh8 {[%emt 0:00:06]} 19. Qxe4 {[%emt 0:00:04]} Bf6 {[%emt 0:01:23]} 20. Bf4 {[%emt 0:03:41]} Re8 {[%emt 0:04:16]} 21. Qf5 {[%emt 0:01:33]} Nb4 {[%emt 0:01:38]} 22. Qc5 {[%emt 0:13:14]} Rac8 {[%emt 0:02:45]} 23. Qxb6 {[%emt 0:03:12]} axb6 {[%emt 0:00:05]} 24. Nxd4 {[%emt 0:06:09]} Bxd4 {[%emt 0:00:26]} 25. c3 {[%emt 0:00:03]} Bxc3 {[%emt 0:03:51]} 26. bxc3 {[%emt 0:00:11]} Rxc3 {[%emt 0:00:10]} 27. Bd2 {[%emt 0:13:21]} Rc4 {[%emt 0:00:46]} 28. Bxb4 {[%emt 0:00:46]} Rxb4 {[%emt 0:00:07]} 29. Rd7 {[%emt 0:00:02]} Rb2 {[%emt 0:03:10]} 30. Rxb7 {[%emt 0:01:25]} h6 {[%emt 0:00:17]} 31. Rd1 {[%emt 0:01:13]} 1/2-1/2

[Event "POL Youth-ch U20 Girls 2020"]
[Site "Pokrzywna"]
[Date "2020.12.03"]
[Round "6.12"]
[White "Sowa, Wiktoria"]
[Black "Bukala, Weronika"]
[Result "0-1"]
[ECO "B31"]
[WhiteElo "2093"]
[BlackElo "1677"]
[Annotator "ChessBase"]
[PlyCount "90"]
[EventDate "2020.11.29"]
[EventType "swiss"]
[EventCountry "POL"]
[SourceTitle "playchess.com"]
[Source "ChessBase"]
[SourceQuality "1"]
[TimeControl "40/5400+30:1800+30"]

1. e4 {[%emt 0:00:00]} c5 {[%emt 0:00:02]} 2. Nf3 {[%emt 0:00:00]} Nc6 {[%emt 0:00:09]} 3. Bb5 {[%emt 0:00:00]} g6 {[%emt 0:00:33]} 4. Bxc6 {[%emt 0:00:05]} dxc6 {[%emt 0:00:10]} 5. d3 {[%emt 0:00:12]} Nf6 {[%emt 0:01:59]} 6. h3 {[%emt 0:00:12]} Bg7 {[%emt 0:04:06]} 7. Nc3 {[%emt 0:00:11]} Nd7 {[%emt 0:00:57]} 8. Be3 {[%emt 0:00:37]} e5 {[%emt 0:01:20]} 9. Qd2 {[%emt 0:00:26]} h6 {[%emt 0:00:25]} 10. a4 {[%emt 0:02:55]} a5 {[%emt 0:13:05]} 11. Ne2 {[%emt 0:01:02]} b6 {[%emt 0:03:19]} 12. c3 {[%emt 0:02:58]} f5 {[%emt 0:03:54]} 13. exf5 {[%emt 0:02:10]} gxf5 {[%emt 0:00:26]} 14. Qc2 {[%emt 0:00:58]} O-O {[%emt 0:09:07]} 15. Rd1 {[%emt 0:01:37]} Ba6 {[%emt 0:02:14]} 16. O-O {[%emt 0:01:03]} Qe7 {[%emt 0:02:45]} 17. Rfe1 {[%emt 0:01:34]} e4 {[%emt 0:13:21]} 18. dxe4 {[%emt 0:01:32]} fxe4 {[%emt 0:00:12]} 19. Nh2 {[%emt 0:00:41]} Bd3 {[%emt 0:01:11]} 20. Qc1 {[%emt 0:01:10]} Kh7 {[%emt 0:08:57]} 21. Ng4 {[%emt 0:03:29]} h5 {[%emt 0:02:11]} 22. Nh2 {[%emt 0:00:30]} c4 {[%emt 0:02:53]} 23. Nf4 {[%emt 0:03:46]} Nc5 {[%emt 0:04:16]} 24. Bxc5 {[%emt 0:09:09]} Qxc5 {[%emt 0:00:22]} 25. Nxd3 {[%emt 0:00:31]} cxd3 {[%emt 0:03:50]} 26. Rxe4 {[%emt 0:03:32]} Qxf2+ {[%emt 0:08:32]} 27. Kh1 {[%emt 0:00:06]} Bh6 {[%emt 0:01:03]} 28. Re7+ {[%emt 0:01:21]} Rf7 {[%emt 0:00:58]} 29. Rxf7+ {[%emt 0:00:12]} Qxf7 {[%emt 0:00:13]} 30. Qb1 {[%emt 0:00:26]} Rd8 {[%emt 0:01:34]} 31. Rxd3 {[%emt 0:01:23]} Qg6 {[%emt 0:01:42]} 32. Rd1 {[%emt 0:00:18]} Qxb1 {[%emt 0:00:49]} 33. Rxb1 {[%emt 0:00:01]} Rd2 {[%emt 0:00:23]} 34. Nf3 {[%emt 0:00:25]} Rd6 {[%emt 0:03:31]} 35. Re1 {[%emt 0:00:45]} Bf4 {[%emt 0:01:25]} 36. Kg1 {[%emt 0:00:45]} Bg3 {[%emt 0:01:07]} 37. Rf1 {[%emt 0:01:18]} Kg6 {[%emt 0:01:48]} 38. Nd4 {[%emt 0:01:19]} Be5 {[%emt 0:02:26]} 39. Nf5 {[%emt 0:02:42]} Re6 {[%emt 0:00:09]} 40. Nh4+ {[%emt 0:00:00]} Kh6 {[%emt 0:00:00]} 41. Re1 {[%emt 0:04:43]} Bh2+ {[%emt 0:02:11]} 42. Kxh2 {[%emt 0:01:36]} Rxe1 {[%emt 0:00:27]} 43. Nf5+ {[%emt 0:00:03]} Kg6 {[%emt 0:01:48]} 44. Nd4 {[%emt 0:00:02]} c5 {[%emt 0:00:49]} 45. Nb5 {[%emt 0:00:09]} Rb1 {[%emt 0:00:59]} 0-1

[Event "POL Youth-ch U20 Girls 2020"]
[Site "Pokrzywna"]
[Date "2020.12.04"]
[Round "7.6"]
[White "Dylag, Emilia"]
[Black "Szczotka, Klara"]
[Result "1/2-1/2"]
[ECO "E91"]
[WhiteElo "2082"]
[BlackElo "1928"]
[Annotator "ChessBase"]
[PlyCount "148"]
[EventDate "2020.11.29"]
[EventType "swiss"]
[EventCountry "POL"]
[SourceTitle "playchess.com"]
[Source "ChessBase"]
[SourceQuality "1"]
[TimeControl "40/5400+30:1800+30"]

1. d4 {[%emt 0:00:00]} Nf6 {[%emt 0:00:00]} 2. c4 {[%emt 0:00:00]} g6 {[%emt 0:00:00]} 3. Nc3 {[%emt 0:00:02]} Bg7 {[%emt 0:00:00]} 4. e4 {[%emt 0:00:23]} d6 {[%emt 0:00:07]} 5. Nf3 {[%emt 0:00:25]} O-O {[%emt 0:00:12]} 6. Be2 {[%emt 0:00:18]} c5 {[%emt 0:02:44]} 7. O-O {[%emt 0:01:12]} Nc6 {[%emt 0:02:56]} 8. d5 {[%emt 0:02:14]} Na5 {[%emt 0:00:17]} 9. h3 {[%emt 0:06:01]} e5 {[%emt 0:05:10]} 10. Ne1 {[%emt 0:09:31]} Ne8 {[%emt 0:06:38]} 11. a3 {[%emt 0:09:03]} b6 {[%emt 0:00:32]} 12. b4 {[%emt 0:12:33]} Nb7 {[%emt 0:00:37]} 13. Nd3 {[%emt 0:00:41]} f5 {[%emt 0:01:35]} 14. f3 {[%emt 0:01:00]} f4 {[%emt 0:00:51]} 15. Bd2 {[%emt 0:07:32]} g5 {[%emt 0:06:44]} 16. a4 {[%emt 0:05:26]} h5 {[%emt 0:02:10]} 17. bxc5 {[%emt 0:03:48]} Nxc5 {[%emt 0:00:11]} 18. Nf2 {[%emt 0:00:16]} Rf6 {[%emt 0:11:51]} 19. a5 {[%emt 0:03:24]} Rb8 {[%emt 0:06:52]} 20. Nb5 {[%emt 0:05:16]} a6 {[%emt 0:04:36]} 21. Na7 {[%emt 0:02:17]} Bd7 {[%emt 0:01:02]} 22. Bb4 {[%emt 0:11:04]} Qc7 {[%emt 0:19:11]} 23. Nc6 {[%emt 0:02:19]} Bxc6 {[%emt 0:01:00]} 24. dxc6 {[%emt 0:01:02]} Qxc6 {[%emt 0:00:36]} 25. axb6 {[%emt 0:01:39]} Rxb6 {[%emt 0:01:18]} 26. Bxc5 {[%emt 0:01:24]} Qxc5 {[%emt 0:01:49]} 27. Qd5+ {[%emt 0:00:54]} Qxd5 {[%emt 0:04:03]} 28. cxd5 {[%emt 0:00:14]} Nc7 {[%emt 0:02:35]} 29. Rfc1 {[%emt 0:01:51]} Nb5 {[%emt 0:02:45]} 30. Rc6 {[%emt 0:00:45]} Rb7 {[%emt 0:02:37]} 31. Bxb5 {[%emt 0:03:37]} axb5 {[%emt 0:00:13]} 32. Nd3 {[%emt 0:00:28]} Rg6 {[%emt 0:03:18]} 33. Kf2 {[%emt 0:04:12]} Kf7 {[%emt 0:01:26]} 34. Raa6 {[%emt 0:01:21]} Ke7 {[%emt 0:00:28]} 35. Nc5 {[%emt 0:00:31]} Rb8 {[%emt 0:00:51]} 36. Ra7+ {[%emt 0:02:07]} Ke8 {[%emt 0:01:54]} 37. Ne6 {[%emt 0:00:44]} Bf8 {[%emt 0:00:53]} 38. Nc7+ {[%emt 0:02:14]} Kd8 {[%emt 0:00:19]} 39. Ne6+ {[%emt 0:00:45]} Ke8 {[%emt 0:00:04]} 40. Rh7 {[%emt 0:00:00]} Rg8 {[%emt 0:00:00]} 41. Nxf8 {[%emt 0:11:06]} Kxf8 {[%emt 0:04:40]} 42. Rxd6 {[%emt 0:01:01]} b4 {[%emt 0:04:36]} 43. Rdd7 {[%emt 0:05:00]} g4 {[%emt 0:04:28]} 44. hxg4 {[%emt 0:09:48]} hxg4 {[%emt 0:00:04]} 45. Rde7 {[%emt 0:02:25]} g3+ {[%emt 0:03:12]} 46. Ke2 {[%emt 0:00:17]} Rg6 {[%emt 0:00:36]} 47. Rxe5 {[%emt 0:03:02]} Kg8 {[%emt 0:03:28]} 48. Reh5 {[%emt 0:01:04]} Rb5 {[%emt 0:02:18]} 49. Ra7 {[%emt 0:00:48]} Rc5 {[%emt 0:02:48]} 50. Re5 {[%emt 0:01:06]} Rf6 {[%emt 0:01:08]} 51. Re8+ {[%emt 0:00:20]} Rf8 {[%emt 0:00:04]} 52. Rxf8+ {[%emt 0:00:32]} Kxf8 {[%emt 0:00:03]} 53. Ra2 {[%emt 0:00:20]} b3 {[%emt 0:01:07]} 54. Rd2 {[%emt 0:01:02]} Rc3 {[%emt 0:01:46]} 55. d6 {[%emt 0:00:32]} Ke8 {[%emt 0:00:04]} 56. d7+ {[%emt 0:00:26]} Kd8 {[%emt 0:00:03]} 57. Kd1 {[%emt 0:00:16]} b2 {[%emt 0:02:22]} 58. Rxb2 {[%emt 0:00:09]} Kxd7 {[%emt 0:00:02]} 59. Rb5 {[%emt 0:01:11]} Ra3 {[%emt 0:00:45]} 60. Rf5 {[%emt 0:00:22]} Ra2 {[%emt 0:01:34]} 61. Rxf4 {[%emt 0:00:14]} Rxg2 {[%emt 0:00:04]} 62. Rg4 {[%emt 0:00:06]} Ke6 {[%emt 0:00:39]} 63. f4 {[%emt 0:01:16]} Kf6 {[%emt 0:02:57]} 64. Ke1 {[%emt 0:00:25]} Rf2 {[%emt 0:02:26]} 65. f5 {[%emt 0:00:26]} Rg2 {[%emt 0:00:16]} 66. Kf1 {[%emt 0:00:30]} Rf2+ {[%emt 0:00:04]} 67. Kg1 {[%emt 0:00:25]} Re2 {[%emt 0:00:15]} 68. Rg6+ {[%emt 0:00:17]} Ke5 {[%emt 0:01:01]} 69. Rxg3 {[%emt 0:00:32]} Rxe4 {[%emt 0:00:34]} 70. Rf3 {[%emt 0:00:07]} Rg4+ {[%emt 0:00:27]} 71. Kh2 {[%emt 0:00:26]} Kf6 {[%emt 0:00:55]} 72. Kh3 {[%emt 0:00:14]} Rg5 {[%emt 0:00:04]} 73. Kh4 {[%emt 0:00:06]} Rxf5 {[%emt 0:00:03]} 74. Rxf5+ {[%emt 0:00:05]} Kxf5 {[%emt 0:00:03]} 1/2-1/2